bitfinex-derivatives/quotes_BTCF0:USTF0_20241005
["timestamp","ask_amount","ask_price","bid_price","bid_amount"]
[1728118936481,0.47684118,62205.0,62204.0,0.22076021]
[1728118937378,0.47684118,62205.0,62204.0,0.12451264]
[1728118937989,0.47684118,62205.0,62204.0,0.22076021]
[1728118940791,0.47684118,62205.0,62204.0,0.002]
[1728118940983,0.47684118,62205.0,62204.0,0.22081301]
[1728118942492,0.47684118,62205.0,62204.0,0.22081302]
[1728118944287,0.47684118,62205.0,62204.0,0.002]
[1728118944288,0.62321606,62205.0,62204.0,0.002]
[1728118947000,0.26241606,62205.0,62204.0,0.002]
[1728118947185,0.56555574,62205.0,62204.0,0.002]
[1728118947494,0.62321606,62205.0,62204.0,0.002]
[1728118949101,0.5345015,62205.0,62204.0,0.002]
[1728118949994,0.62321638,62205.0,62204.0,0.002]
[1728118959098,0.47684118,62205.0,62204.0,0.002]
[1728118959401,0.417062,62205.0,62204.0,0.002]
[1728118974211,0.56343731,62205.0,62204.0,0.002]
[1728118974917,0.51409125,62205.0,62204.0,0.002]
[1728118975218,0.56343731,62205.0,62204.0,0.002]
[1728118979301,0.66343731,62205.0,62204.0,0.002]
[1728118982106,0.517062,62205.0,62204.0,0.002]
[1728118989123,0.66343739,62205.0,62204.0,0.002]
[1728118991319,0.30263739,62205.0,62204.0,0.002]
[1728118991521,0.60577687,62205.0,62204.0,0.002]
[1728118991709,0.66343739,62205.0,62204.0,0.002]
[1728118993321,0.66343748,62205.0,62204.0,0.002]
[1728118993722,0.30263748,62205.0,62204.0,0.002]
[1728118994019,0.24497696,62205.0,62204.0,0.002]
[1728118994520,0.60577696,62205.0,62204.0,0.002]
[1728118994725,0.66343748,62205.0,62204.0,0.002]
[1728118995025,0.30263748,62205.0,62204.0,0.002]
[1728118995228,0.60577696,62205.0,62204.0,0.002]
[1728118995425,0.66343748,62205.0,62204.0,0.002]
[1728118995618,0.30263748,62205.0,62204.0,0.002]
[1728118995818,0.60577696,62205.0,62204.0,0.002]
[1728118996025,0.66343748,62205.0,62204.0,0.002]
[1728118996328,0.30263748,62205.0,62204.0,0.002]
[1728118996527,0.24497696,62205.0,62204.0,0.002]
[1728118996722,0.60577696,62205.0,62204.0,0.002]
[1728118996923,0.66343748,62205.0,62204.0,0.002]
[1728118997119,0.517062,62205.0,62204.0,0.002]
[1728118998324,0.156262,62205.0,62204.0,0.002]
[1728118998522,0.517062,62205.0,62204.0,0.002]
[1728118999822,0.156262,62205.0,62204.0,0.002]
[1728119000023,0.517062,62205.0,62204.0,0.002]
[1728119003030,0.156262,62205.0,62204.0,0.002]
[1728119003228,0.517062,62205.0,62204.0,0.002]
[1728119004117,0.66343757,62205.0,62204.0,0.002]
[1728119004822,0.30263757,62205.0,62204.0,0.002]
[1728119005027,0.60577698,62205.0,62204.0,0.002]
[1728119005333,0.66343757,62205.0,62204.0,0.002]
[1728119006123,0.056267,62200.0,62199.0,0.0112]
[1728119006422,0.056273,62193.0,62192.0,0.0037]
[1728119006623,0.056273,62193.0,62188.0,0.0323]
[1728119006624,0.056277,62189.0,62188.0,0.036]
[1728119006925,0.19564583,62189.0,62188.0,0.0323]
[1728119007126,0.24499198,62189.0,62188.0,0.0323]
[1728119007820,0.24500893,62189.0,62188.0,0.0323]
[1728119009128,0.30266962,62189.0,62188.0,0.0323]
[1728119010034,0.24500893,62189.0,62188.0,0.0323]
[1728119010328,0.30266962,62189.0,62188.0,0.0323]
[1728119010530,0.24500893,62189.0,62188.0,0.0323]
[1728119010734,0.30266962,62189.0,62188.0,0.0323]
[1728119011424,0.056278,62188.0,62183.0,0.0037]
[1728119011628,0.14500993,62188.0,62182.0,0.0652]
[1728119012227,0.1,62189.0,62187.0,0.12495867]
[1728119012429,0.1,62189.0,62188.0,0.12254679]
[1728119012653,0.056278,62188.0,62187.0,0.00241188]
[1728119012836,0.056278,62188.0,62187.0,0.1249573]
[1728119013136,0.057278,62188.0,62187.0,0.1249573]
[1728119013531,0.058278,62188.0,62187.0,0.1249573]
[1728119014243,0.419078,62188.0,62187.0,0.1249573]
[1728119016442,0.419078,62188.0,62187.0,0.20511269]
[1728119018528,0.419078,62188.0,62187.0,0.08256727]
[1728119019132,0.419078,62188.0,62187.0,0.20511282]
[1728119019330,0.419078,62188.0,62187.0,0.08256727]
[1728119019641,0.419078,62188.0,62187.0,0.00241188]
[1728119020737,0.419078,62188.0,62187.0,0.00341188]
[1728119021133,0.419078,62188.0,62187.0,0.00441188]
[1728119024234,0.419078,62188.0,62187.0,0.12695772]
[1728119024235,0.3628,62188.0,62187.0,0.12695772]
[1728119024435,0.30647818,62188.0,62187.0,0.18323672]
[1728119027342,0.39521246,62188.0,62187.0,0.06069088]
[1728119027538,0.45288559,62188.0,62187.0,0.06069088]
[1728119029033,0.50916359,62188.0,62187.0,0.00441188]
[1728119029741,0.62796729,62188.0,62187.0,0.00441188]
[1728119030044,0.68564042,62188.0,62187.0,0.00441188]
[1728119030436,0.50916359,62188.0,62187.0,0.00441188]
[1728119031943,0.50916295,62188.0,62187.0,0.00441188]
[1728119032447,0.62803372,62188.0,62187.0,0.00441188]
[1728119032635,0.50916295,62188.0,62187.0,0.00441188]
[1728119034350,0.36275618,62188.0,62187.0,0.12695044]
[1728119036944,0.36275618,62188.0,62187.0,0.12695042]
[1728119038149,0.058278,62188.0,62187.0,0.12695042]
[1728119039040,0.058278,62188.0,62187.0,0.27600083]
[1728119042246,0.058278,62188.0,62187.0,0.20729333]
[1728119043653,0.058278,62188.0,62187.0,0.12695042]
[1728119044244,0.058278,62188.0,62187.0,0.20729168]
[1728119045053,0.058278,62188.0,62187.0,0.20729109]
[1728119045448,0.058278,62188.0,62187.0,0.12695042]
[1728119046156,0.058278,62188.0,62187.0,0.20729102]
[1728119046539,0.002,62188.0,62187.0,0.12695042]
[1728119046745,0.002,62188.0,62187.0,0.69282797]
[1728119046946,0.002,62188.0,62187.0,1.77522797]
[1728119049349,0.04137075,62188.0,62187.0,1.50389088]
[1728119049651,0.09071931,62188.0,62187.0,1.50389088]
[1728119052861,0.09071931,62188.0,62187.0,1.14309088]
[1728119053357,0.09071931,62188.0,62187.0,1.50389088]
[1728119054458,0.09071931,62188.0,62187.0,1.14309088]
[1728119054645,0.09071931,62188.0,62187.0,1.50389088]
[1728119055055,0.09071958,62188.0,62187.0,1.14309088]
[1728119055253,0.09071958,62188.0,62187.0,1.50389088]
[1728119055459,0.16253161,62188.0,62187.0,1.50389088]
[1728119055660,0.16253161,62188.0,62187.0,1.14309088]
[1728119055859,0.16253161,62188.0,62187.0,1.50389088]
[1728119056050,0.21188032,62188.0,62187.0,1.50389088]
[1728119056256,0.09071958,62188.0,62187.0,1.50389088]
[1728119056763,0.09071958,62188.0,62187.0,0.90389088]
[1728119057370,0.03094893,62194.0,62187.0,0.97013125]
[1728119057558,0.03094893,62194.0,62193.0,0.1801732]
[1728119058465,0.03094893,62194.0,62193.0,0.1]
[1728119059557,0.03094893,62194.0,62193.0,0.101]
[1728119059558,0.03394893,62194.0,62193.0,0.101]
[1728119060150,0.003,62194.0,62193.0,0.2384462]
[1728119064263,0.003,62194.0,62193.0,0.36096486]
[1728119064472,0.003,62194.0,62193.0,0.158273]
[1728119064763,0.04237034,62194.0,62193.0,0.158273]
[1728119064964,0.003,62194.0,62193.0,0.158273]
[1728119065352,0.04237034,62194.0,62193.0,0.158273]
[1728119065557,0.003,62194.0,62193.0,0.158273]
[1728119065762,0.09171839,62194.0,62193.0,0.158273]
[1728119068069,0.09171839,62194.0,62193.0,0.18681382]
[1728119072468,0.003,62194.0,62193.0,0.30933168]
[1728119074370,0.003,62194.0,62193.0,0.40553953]
[1728119075574,0.003,62194.0,62193.0,0.30933168]
[1728119076468,0.003,62194.0,62193.0,0.45765006]
[1728119077061,0.003,62194.0,62193.0,0.30933168]
[1728119079470,0.04237077,62194.0,62193.0,0.18681382]
[1728119079674,0.09171936,62194.0,62193.0,0.18681382]
[1728119083076,0.19171936,62194.0,62193.0,0.03054082]
[1728119083282,0.24799136,62194.0,62193.0,0.03054082]
[1728119083973,0.14799136,62194.0,62193.0,0.03054082]
[1728119084573,0.09171936,62194.0,62193.0,0.18681382]
[1728119087476,0.003,62194.0,62193.0,0.40574098]
[1728119089383,0.003,62194.0,62193.0,0.40574096]
[1728119090575,0.003,62194.0,62193.0,0.3093344]
[1728119094475,0.003,62194.0,62193.0,0.18681382]
[1728119094476,0.09171909,62194.0,62193.0,0.18681382]
[1728119101478,0.04934844,62199.0,62193.0,0.18681382]
[1728119101785,0.0037,62201.0,62197.0,0.156269]
[1728119101786,0.0887157,62198.0,62197.0,0.156269]
[1728119102487,0.0037,62205.0,62197.0,0.78786481]
[1728119102789,0.20905833,62208.0,62207.0,0.05626]
[1728119102972,0.088756,62212.0,62209.0,0.056259]
[1728119103170,0.088756,62212.0,62211.0,0.16418729]
[1728119104275,0.089756,62212.0,62211.0,0.16518729]
[1728119104587,0.089756,62212.0,62211.0,0.101]
[1728119105377,0.089756,62212.0,62211.0,0.102]
[1728119106083,0.057256,62212.0,62211.0,0.102]
[1728119107986,0.057256,62212.0,62211.0,0.13083579]
[1728119110587,0.057256,62212.0,62211.0,0.03083579]
[1728119110891,0.157256,62212.0,62211.0,0.03083579]
[1728119111393,0.157256,62212.0,62211.0,0.002]
[1728119116688,0.157256,62212.0,62209.0,0.056258]
[1728119116689,0.30361298,62212.0,62209.0,0.056258]
[1728119116996,0.14635705,62211.0,62209.0,0.056258]
[1728119117194,0.14635705,62210.0,62209.0,0.056258]
[1728119117996,0.14635705,62210.0,62209.0,0.057258]
[1728119118995,0.14635705,62210.0,62209.0,0.058258]
[1728119119591,0.14635705,62210.0,62209.0,0.08707674]
[1728119119592,0.14835705,62210.0,62209.0,0.08707674]
[1728119121903,0.148357,62210.0,62209.0,0.08707674]
[1728119122595,0.148357,62210.0,62209.0,0.03081874]
[1728119123492,0.148357,62210.0,62209.0,0.08707674]
[1728119123892,0.304615,62210.0,62209.0,0.002]
[1728119124696,0.158258,62210.0,62209.0,0.002]
[1728119126901,0.058258,62210.0,62209.0,0.002]
[1728119131617,0.09901653,62210.0,62208.0,0.04570577]
[1728119131912,0.20261513,62209.0,62208.0,0.04570577]
[1728119132716,0.20261513,62209.0,62208.0,0.04670577]
[1728119132920,0.20261513,62209.0,62208.0,0.04770577]
[1728119133313,0.11391193,62209.0,62208.0,0.04770577]
[1728119133623,0.20361011,62209.0,62208.0,0.04770577]
[1728119133917,0.20461011,62209.0,62208.0,0.04770577]
[1728119136722,0.20461206,62209.0,62208.0,0.04770577]
[1728119137715,0.20461206,62209.0,62208.0,0.03908745]
[1728119139609,0.058259,62209.0,62208.0,0.03908745]
[1728119145222,0.058259,62209.0,62208.0,0.02568604]
[1728119149125,0.002,62209.0,62208.0,0.02568604]
[1728119153937,0.002,62209.0,62208.0,0.058259]
[1728119154433,0.002,62209.0,62208.0,0.158259]
[1728119154832,0.14834878,62209.0,62208.0,0.02061982]
[1728119155237,0.21431268,62209.0,62208.0,0.02061982]
[1728119155437,0.14834878,62209.0,62208.0,0.07687882]
[1728119156337,0.14834872,62209.0,62208.0,0.07687882]
[1728119159840,0.14834871,62209.0,62208.0,0.07687882]
[1728119161940,0.002,62209.0,62208.0,0.14106611]
[1728119162341,0.002,62209.0,62208.0,0.14110601]
[1728119162545,0.002,62209.0,62208.0,0.43767882]
[1728119162943,0.002,62209.0,62208.0,0.51794756]
[1728119163146,0.002,62209.0,62208.0,0.43767882]
[1728119168456,0.002,62209.0,62208.0,1.51991882]
[1728119169859,0.09068735,62209.0,62208.0,1.51991882]
[1728119170059,0.09068735,62209.0,62208.0,0.91991882]
[1728119170252,0.09068735,62209.0,62208.0,0.43767882]
[1728119170559,0.09068735,62209.0,62208.0,1.51991882]
[1728119176761,0.002,62209.0,62208.0,1.51991882]
[1728119177873,0.002,62209.0,62208.0,0.91991882]
[1728119179862,0.002,62209.0,62208.0,1.51991882]
[1728119180171,0.0037,62216.0,62215.0,0.156253]
[1728119180373,0.056247,62222.0,62218.0,0.05625]
[1728119181363,0.056247,62222.0,62218.0,0.05725]
[1728119181564,0.058247,62222.0,62218.0,0.05725]
[1728119183073,0.060247,62222.0,62218.0,0.05825]
[1728119185274,0.060247,62222.0,62218.0,0.08688424]
[1728119185974,0.03935405,62221.0,62218.0,0.08688424]
[1728119186270,0.060247,62222.0,62218.0,0.08688424]
[1728119186468,0.03935405,62221.0,62218.0,0.08688424]
[1728119186668,0.060247,62222.0,62218.0,0.08688424]
[1728119186868,0.03935405,62221.0,62218.0,0.08688424]
[1728119187060,0.060247,62222.0,62218.0,0.08688424]
[1728119187267,0.03935405,62221.0,62218.0,0.08688424]
[1728119187468,0.03935405,62220.0,62218.0,0.08688424]
[1728119187667,0.004,62221.0,62218.0,0.08688424]
[1728119187866,0.03935405,62220.0,62218.0,0.08688424]
[1728119188066,0.002,62221.0,62218.0,0.08688424]
[1728119188267,0.03935405,62220.0,62218.0,0.08688424]
[1728119188477,0.002,62221.0,62218.0,0.08688424]
[1728119188775,0.04135405,62220.0,62218.0,0.08688424]
[1728119188976,0.002,62220.0,62218.0,0.08688424]
[1728119189169,0.002,62220.0,62218.0,0.08588424]
[1728119189170,0.03935405,62219.0,62218.0,0.08588424]
[1728119189367,0.03935405,62219.0,62218.0,0.08688424]
[1728119189572,0.03935405,62219.0,62218.0,0.08588424]
[1728119189773,0.03935405,62219.0,62218.0,0.08688424]
[1728119190476,0.04135405,62219.0,62218.0,0.08688424]
[1728119191377,0.04335405,62219.0,62218.0,0.08688424]
[1728119191878,0.07630573,62223.0,62218.0,0.60569633]
[1728119192073,0.07630573,62223.0,62222.0,0.1123411]
[1728119192272,0.07630573,62223.0,62222.0,0.55895756]
[1728119192867,0.07630573,62223.0,62222.0,0.38387173]
[1728119193270,0.07830573,62223.0,62222.0,0.38387173]
[1728119194069,0.07630573,62223.0,62222.0,0.38387173]
[1728119194279,0.07830573,62223.0,62222.0,0.38487173]
[1728119195080,0.07830573,62223.0,62222.0,0.27353063]
[1728119195272,0.002,62223.0,62222.0,0.27353063]
[1728119198480,0.002,62223.0,62222.0,0.27353061]
[1728119199879,0.002,62223.0,62222.0,0.1244672]
[1728119206984,0.09067992,62223.0,62222.0,0.002]
[1728119207772,0.14831772,62223.0,62222.0,0.002]
[1728119207977,0.09067992,62223.0,62222.0,0.002]
[1728119210784,0.09067992,62223.0,62222.0,0.058247]
[1728119212587,0.26755957,62223.0,62222.0,0.058247]
[1728119212787,0.26756205,62223.0,62222.0,0.058247]
[1728119213388,0.0906824,62223.0,62222.0,0.058247]
[1728119214185,0.26756205,62223.0,62222.0,0.058247]
[1728119214980,0.002,62223.0,62222.0,0.32977805]
[1728119216882,0.058246,62223.0,62222.0,0.32977805]
[1728119217380,0.002,62223.0,62222.0,0.32977805]
[1728119218988,0.002,62223.0,62222.0,0.44211915]
[1728119219393,0.002,62223.0,62222.0,0.61556354]
[1728119219593,0.002,62223.0,62222.0,0.50322244]
[1728119220494,0.058246,62223.0,62222.0,0.50322244]
[1728119221185,0.058246,62223.0,62222.0,0.50323959]
[1728119221989,0.1,62224.0,62222.0,0.32977907]
[1728119222191,0.156245,62224.0,62223.0,0.27153207]
[1728119224296,0.156245,62224.0,62223.0,0.27353207]
[1728119224889,0.156245,62224.0,62223.0,0.27339187]
[1728119225394,0.056245,62224.0,62223.0,0.27339187]
[1728119225596,0.05865217,62229.0,62228.0,0.056241]
[1728119225802,0.00241117,62229.0,62228.0,0.27871023]
[1728119225990,0.00241117,62229.0,62228.0,0.42740246]
[1728119226708,0.00241117,62229.0,62228.0,0.42840246]
[1728119227503,0.00241117,62229.0,62228.0,0.42940246]
[1728119229900,0.09108343,62229.0,62228.0,0.158241]
[1728119230500,0.09108343,62229.0,62228.0,0.18708581]
[1728119231902,0.09108343,62229.0,62228.0,0.54788581]
[1728119235291,0.09107895,62229.0,62228.0,0.54788581]
[1728119236596,0.08866778,62229.0,62228.0,0.54788581]
[1728119236912,0.17651834,62230.0,62228.0,0.7623016]
[1728119236913,0.16041487,62230.0,62228.0,0.7623016]
[1728119237112,0.16041487,62230.0,62229.0,0.32689779]
[1728119237404,0.16041487,62230.0,62229.0,0.35849779]
[1728119237601,0.0037,62237.0,62229.0,0.35849779]
[1728119237805,0.056231,62240.0,62236.0,0.1]
[1728119238104,0.056231,62240.0,62237.0,0.25873187]
[1728119238303,0.056231,62240.0,62239.0,0.1]
[1728119238603,0.056231,62240.0,62238.0,0.08005625]
[1728119239409,0.056231,62240.0,62238.0,0.13628825]
[1728119239596,0.056231,62240.0,62239.0,0.08105625]
[1728119239795,0.156231,62240.0,62239.0,0.08105625]
[1728119239997,0.156231,62240.0,62239.0,0.20349431]
[1728119240505,0.156231,62240.0,62239.0,0.08005625]
[1728119240702,0.156231,62240.0,62239.0,0.08105625]
[1728119241603,0.156231,62240.0,62239.0,0.20349111]
[1728119241802,0.156231,62240.0,62239.0,0.08105625]
[1728119242199,0.156231,62240.0,62239.0,0.08205625]
[1728119242400,0.156231,62240.0,62239.0,0.002]
[1728119244805,0.156231,62240.0,62239.0,0.03120358]
[1728119245007,0.4213464,62240.0,62239.0,0.03120358]
[1728119245508,0.24489075,62240.0,62239.0,0.03120358]
[1728119249395,0.33257474,62240.0,62239.0,0.03120358]
[1728119249599,0.42123449,62240.0,62239.0,0.03120358]
[1728119251514,0.30251545,62240.0,62239.0,0.03120358]
[1728119251709,0.24489075,62240.0,62239.0,0.03120358]
[1728119252004,0.156231,62240.0,62239.0,0.03120358]
[1728119254301,0.156231,62240.0,62239.0,0.09519835]
[1728119255412,0.156231,62240.0,62239.0,0.03120358]
[1728119259511,0.156231,62240.0,62239.0,0.09533048]
[1728119260011,0.156231,62240.0,62239.0,0.03120358]
[1728119260012,0.2448924,62240.0,62239.0,0.03120358]
[1728119262010,0.2448924,62240.0,62239.0,0.002]
[1728119263712,0.156231,62240.0,62239.0,0.002]
[1728119263913,0.24489902,62240.0,62239.0,0.002]
[1728119267118,0.156231,62240.0,62239.0,0.22051587]
[1728119271224,0.056231,62240.0,62239.0,0.22051587]
[1728119271530,0.156231,62240.0,62239.0,0.22051587]
[1728119271723,0.156231,62240.0,62239.0,0.12444777]
[1728119273220,0.517031,62240.0,62239.0,0.12444777]
[1728119275122,0.66332724,62240.0,62239.0,0.002]
[1728119276617,1.74532724,62240.0,62239.0,0.002]
[1728119276922,0.72926652,62240.0,62239.0,0.002]
[1728119277222,0.66332724,62240.0,62239.0,0.002]
[1728119282127,0.4608,62240.0,62239.0,0.22064017]
[1728119282425,0.517031,62240.0,62239.0,0.22064017]
[1728119285427,0.517031,62240.0,62239.0,0.12444647]
[1728119290124,0.517031,62240.0,62239.0,0.002]
[1728119290324,0.517031,62240.0,62239.0,0.06618226]
[1728119297031,0.517031,62240.0,62239.0,0.002]
[1728119297227,0.66332685,62240.0,62239.0,0.002]
[1728119299736,0.7664647,62240.0,62239.0,0.002]
[1728119301740,0.80581207,62240.0,62239.0,0.002]
[1728119302040,0.76646469,62240.0,62239.0,0.002]
[1728119302236,0.50569765,62240.0,62239.0,0.002]
[1728119302637,0.66646723,62240.0,62239.0,0.002]
[1728119305038,0.72409605,62240.0,62239.0,0.002]
[1728119305241,0.417031,62240.0,62239.0,0.002]
[1728119306549,0.517031,62240.0,62239.0,0.002]
[1728119309647,0.517031,62240.0,62239.0,0.00121229]
[1728119312258,0.517031,62240.0,62239.0,0.06541119]
[1728119312945,0.517031,62240.0,62239.0,0.00121229]
[1728119319360,0.66332354,62240.0,62239.0,0.00121229]
[1728119327263,0.517031,62240.0,62239.0,0.00121229]
[1728119329563,0.417031,62240.0,62239.0,0.00121229]
[1728119329762,0.517031,62240.0,62239.0,0.0654127]
[1728119330472,0.517031,62240.0,62239.0,0.00121229]
[1728119330473,0.417031,62240.0,62239.0,0.00121229]
[1728119330963,0.517031,62240.0,62239.0,0.00121229]
[1728119332763,0.417031,62240.0,62239.0,0.00121229]
[1728119334370,0.56332404,62240.0,62239.0,0.00121229]
[1728119336872,0.56332199,62240.0,62239.0,0.00121229]
[1728119342275,0.417031,62240.0,62239.0,0.00121229]
[1728119349283,0.56332047,62240.0,62239.0,0.00121229]
[1728119349784,0.56332046,62240.0,62239.0,0.00121229]
[1728119357284,0.56332046,62240.0,62239.0,0.21992969]
[1728119357285,0.3608,62240.0,62239.0,0.21992969]
[1728119357590,0.417031,62240.0,62239.0,0.21992969]
[1728119357986,0.056231,62240.0,62239.0,0.21992969]
[1728119358378,0.417031,62240.0,62239.0,0.1236563]
[1728119360379,0.056231,62240.0,62239.0,0.21992969]
[1728119360581,0.417031,62240.0,62239.0,0.21992969]
[1728119360781,0.056231,62240.0,62239.0,0.21992969]
[1728119360984,0.417031,62240.0,62239.0,0.21992969]
[1728119361384,0.417031,62240.0,62239.0,0.1236563]
[1728119361790,0.417031,62240.0,62239.0,0.21992969]
[1728119363199,0.417031,62240.0,62239.0,0.1236563]
[1728119364291,0.53673281,62240.0,62239.0,0.00121229]
[1728119364491,0.59436088,62240.0,62239.0,0.00121229]
[1728119364695,0.59436098,62240.0,62239.0,0.00121229]
[1728119366401,0.23356098,62240.0,62239.0,0.00121229]
[1728119366694,0.17593291,62240.0,62239.0,0.00121229]
[1728119367088,0.53673291,62240.0,62239.0,0.00121229]
[1728119367298,0.59436098,62240.0,62239.0,0.00121229]
[1728119369594,0.59436061,62240.0,62239.0,0.00121229]
[1728119372302,0.59436061,62240.0,62239.0,0.12365591]
[1728119372303,0.417031,62240.0,62239.0,0.12365591]
[1728119373796,0.417031,62240.0,62239.0,0.2199293]
[1728119373992,0.417031,62240.0,62239.0,0.12365591]
[1728119374302,0.417031,62240.0,62239.0,0.12365629]
[1728119379002,0.056231,62240.0,62239.0,0.12365629]
[1728119379203,0.417031,62240.0,62239.0,0.12365629]
[1728119379504,0.417031,62240.0,62239.0,0.00121229]
[1728119380103,0.056231,62240.0,62239.0,0.00121229]
[1728119380310,0.417031,62240.0,62239.0,0.00121229]
[1728119380908,0.056231,62240.0,62239.0,0.00121229]
[1728119381111,0.417031,62240.0,62239.0,0.00121229]
[1728119386712,0.056231,62240.0,62239.0,0.00121229]
[1728119387013,0.417031,62240.0,62239.0,0.00121229]
[1728119387308,0.15320596,62240.0,62239.0,0.00121229]
[1728119387513,0.53673315,62240.0,62239.0,0.00094592]
[1728119387820,0.59436138,62240.0,62239.0,0.00094592]
[1728119388207,0.23356138,62240.0,62239.0,0.00094592]
[1728119388410,0.53673315,62240.0,62239.0,0.00094592]
[1728119388611,0.59436138,62240.0,62239.0,0.00094592]
[1728119394109,0.59436178,62240.0,62239.0,0.00094592]
[1728119394501,0.417031,62240.0,62239.0,0.27022212]
[1728119399008,0.056231,62240.0,62239.0,0.27022212]
[1728119399306,0.417031,62240.0,62239.0,0.27022212]
[1728119399507,0.056231,62240.0,62239.0,0.27022212]
[1728119399807,0.417031,62240.0,62239.0,0.27022212]
[1728119400513,0.056231,62240.0,62239.0,0.27022212]
[1728119400714,0.417031,62240.0,62239.0,0.27022212]
[1728119401509,0.056231,62240.0,62239.0,0.27022212]
[1728119401717,0.417031,62240.0,62239.0,0.27022212]
[1728119401920,0.056231,62240.0,62239.0,0.27022212]
[1728119402119,0.417031,62240.0,62239.0,0.27022212]
[1728119402315,0.3608,62240.0,62239.0,0.27023186]
[1728119402617,0.417031,62240.0,62239.0,0.00094592]
[1728119404013,0.056231,62240.0,62239.0,0.00094592]
[1728119404213,0.417031,62240.0,62239.0,0.00094592]
[1728119407514,0.417031,62240.0,62239.0,0.09638865]
[1728119407915,0.417031,62240.0,62239.0,0.03214592]
[1728119409524,0.53673364,62240.0,62239.0,0.03214592]
[1728119409823,0.59436211,62240.0,62239.0,0.03214592]
[1728119410922,0.23356211,62240.0,62239.0,0.03214592]
[1728119411224,0.63673364,62240.0,62239.0,0.03214592]
[1728119411425,0.69436211,62240.0,62239.0,0.03214592]
[1728119415028,0.69436211,62240.0,62239.0,0.00506423]
[1728119415226,0.69436211,62240.0,62237.0,0.056233]
[1728119415227,0.69436211,62240.0,62237.0,0.04827473]
[1728119415424,0.17733111,62239.0,62237.0,0.04827473]
[1728119415729,0.11970264,62238.0,62237.0,0.04827473]
[1728119416421,0.11970264,62238.0,62237.0,0.05027473]
[1728119417033,0.12070264,62238.0,62237.0,0.05027473]
[1728119417419,0.001,62238.0,62237.0,0.05027473]
[1728119419436,0.001,62238.0,62237.0,0.002]
[1728119419932,0.418032,62238.0,62237.0,0.002]
[1728119420323,0.057232,62238.0,62237.0,0.002]
[1728119420529,0.418032,62238.0,62237.0,0.002]
[1728119421027,0.057232,62238.0,62237.0,0.002]
[1728119421434,0.418032,62238.0,62237.0,0.002]
[1728119422533,0.057232,62238.0,62237.0,0.002]
[1728119422730,0.418032,62238.0,62237.0,0.002]
[1728119423935,0.057232,62238.0,62237.0,0.002]
[1728119424135,0.418032,62238.0,62237.0,0.002]
[1728119424531,0.53773605,62238.0,62237.0,0.002]
[1728119427935,0.23456524,62238.0,62237.0,0.002]
[1728119428239,0.17693605,62238.0,62237.0,0.002]
[1728119428428,0.53773605,62238.0,62237.0,0.002]
[1728119428628,0.59536524,62238.0,62237.0,0.002]
[1728119428834,0.23456524,62238.0,62237.0,0.002]
[1728119429036,0.53773605,62238.0,62237.0,0.002]
[1728119429231,0.59536524,62238.0,62237.0,0.002]
[1728119429932,0.53773605,62238.0,62237.0,0.002]
[1728119432440,0.418032,62238.0,62237.0,0.12444511]
[1728119436538,0.418032,62238.0,62237.0,0.002]
[1728119436742,0.418032,62238.0,62237.0,0.12444512]
[1728119438538,0.518032,62238.0,62237.0,0.12444512]
[1728119439649,0.518032,62238.0,62237.0,0.102]
[1728119439650,0.59536336,62238.0,62237.0,0.102]
[1728119441557,0.59536331,62238.0,62237.0,0.102]
[1728119446347,0.63471044,62238.0,62237.0,0.102]
[1728119447048,0.63471044,62238.0,62237.0,0.158233]
[1728119447658,0.40014693,62238.0,62237.0,0.42755182]
[1728119448553,0.45637893,62238.0,62237.0,0.42755182]
[1728119450952,0.417032,62238.0,62237.0,0.42755182]
[1728119451360,0.417032,62238.0,62237.0,0.42721973]
[1728119454559,0.53673495,62238.0,62237.0,0.158233]
[1728119454858,0.59436356,62238.0,62237.0,0.158233]
[1728119460959,0.59436356,62238.0,62237.0,0.058233]
[1728119462664,0.417032,62238.0,62237.0,0.32721036]
[1728119463072,0.056232,62238.0,62237.0,0.32721036]
[1728119463567,0.517032,62238.0,62237.0,0.32721036]
[1728119463966,0.156232,62238.0,62237.0,0.32721036]
[1728119464363,0.517032,62238.0,62237.0,0.27097736]
[1728119465272,0.156232,62238.0,62237.0,0.27097736]
[1728119465467,0.517032,62238.0,62237.0,0.27097736]
[1728119466969,0.156232,62238.0,62237.0,0.27097736]
[1728119467271,0.417032,62238.0,62237.0,0.27097736]
[1728119467478,0.517032,62238.0,62237.0,0.27097736]
[1728119468471,0.156232,62238.0,62237.0,0.27097736]
[1728119469163,0.517032,62238.0,62237.0,0.27097736]
[1728119469664,0.517032,62238.0,62237.0,0.002]
[1728119470070,0.156232,62238.0,62237.0,0.002]
[1728119470277,0.517032,62238.0,62237.0,0.002]
[1728119471067,0.156232,62238.0,62237.0,0.002]
[1728119471273,0.517032,62238.0,62237.0,0.002]
[1728119471575,0.417032,62238.0,62237.0,0.002]
[1728119471875,0.156232,62238.0,62237.0,0.002]
[1728119472066,0.517032,62238.0,62237.0,0.002]
[1728119474267,0.156232,62238.0,62237.0,0.002]
[1728119474469,0.517032,62238.0,62237.0,0.002]
[1728119477264,0.517032,62238.0,62237.0,0.00119321]
[1728119477771,0.517032,62238.0,62234.0,0.056236]
[1728119477772,0.69436414,62238.0,62234.0,0.04723488]
[1728119477971,0.17733214,62237.0,62233.0,0.02840165]
[1728119478178,0.17733214,62237.0,62232.0,0.1037]
[1728119478179,0.11970334,62236.0,62235.0,0.056235]
[1728119478378,0.17733214,62236.0,62235.0,0.056235]
[1728119479081,0.11970334,62236.0,62235.0,0.056235]
[1728119479580,0.11970334,62236.0,62235.0,0.057235]
[1728119479778,0.12070334,62236.0,62235.0,0.058235]
[1728119484185,0.12070324,62236.0,62235.0,0.058235]
[1728119484576,0.001,62236.0,62235.0,0.60903925]
[1728119484782,0.1,62237.0,62235.0,0.60903925]
[1728119484984,0.1,62237.0,62236.0,0.26864471]
[1728119485473,0.156234,62237.0,62236.0,0.26864471]
[1728119485880,0.157234,62237.0,62236.0,0.26864471]
[1728119486288,0.158234,62237.0,62236.0,0.26964471]
[1728119487782,0.158234,62237.0,62236.0,0.27064471]
[1728119488981,0.158234,62237.0,62236.0,0.26995053]